Cogmind - Beta 15 @@@ ROGUE MODE // 2025.07.28 @ 16:45:58 Player: Skysub Result: Self-destructed Performance ------------- Evolutions (1) 500 Regions Visited (3) 600 Robots Destroyed (61) 305 Value Destroyed (1286) 1286 Prototype IDs (2) 40 Alien Tech Used (0) 0 Bonus (0) 0 TOTAL SCORE: 2731 Bonus ------- None Cogmind --------- Core Integrity 318/400 Matter 239/300 Energy 250/250 System Corruption 0% Temperature Cool (0) Movement Treading (160) Location -9/Materials Parts ------- > --- POWER (1) -------- Ion Engine > --- PROPULSION (2) --- Improved Treads Improved Treads > --- UTILITY (3) ------ Large Storage Unit Light Armor Plating Light Armor Plating > --- WEAPON (3) ------- Light Assault Rifle Improved Assault Rifle Light Cannon > --- INVENTORY (15) --- Ion Engine Light Treads Improved Treads Armored Wheel Armored Wheel Improved Heat Sink Cooling System Small Storage Unit Structural Scanner Experimental Sensor Array Small Laser Grenade Launcher Grenade Launcher Maul Peak State ------------ > --- POWER ------------ Ion Engine > --- PROPULSION ------- Improved Treads Improved Treads > --- UTILITY ---------- Large Storage Unit Experimental Sensor Array > --- WEAPON ----------- Light Assault Rifle Grenade Launcher > --- INVENTORY -------- Improved Treads Wheel Compact Wheel Improved Heat Sink Cooling System Small Storage Unit Structural Scanner Targeting Computer Small Laser Light Assault Rifle Light Cannon Grenade Launcher Maul [Rating: 18] Favorites ----------- Power Ion Engine Engine Ion Engine Propulsion Improved Treads Treads Improved Treads Utility Large Storage Unit Device Seismic Detector Storage Large Storage Unit Processor Improved Targeting Computer Protection Propulsion Shielding Weapon Light Assault Rifle Energy Gun Small Laser Ballistic Gun Light Assault Rifle Ballistic Cannon Light Cannon Launcher Grenade Launcher Build | -11 -10 -10 -9 ------- Run | Yrd Mat Min Mat Slots Evolved 2 | . . . 2 Power . | . . . . Propulsion . | . . . . Utility 1 | . . . 1 Weapon 1 | . . . 1 Parts Attached 26 | 7 8 3 8 Power 3 | 1 1 . 1 Engine 3 | 1 1 . 1 Core . | . . . . Reactor . | . . . . Propulsion 7 | 2 3 . 2 Treads 7 | 2 3 . 2 Leg . | . . . . Wheel . | . . . . Hover . | . . . . Flight . | . . . . Utility 8 | 2 1 2 3 Device 2 | 1 . 1 . Storage 2 | 1 1 . . Processor 1 | . . . 1 Hackware . | . . . . Protection 3 | . . 1 2 Artifact . | . . . . Weapon 8 | 2 3 1 2 Energy Gun 1 | . 1 . . Energy Cannon . | . . . . Ballistic Gun 5 | 2 1 . 2 Ballistic Cannon 1 | . 1 . . Launcher 1 | . . 1 . Special Weapon . | . . . . Impact Weapon . | . . . . Slashing Weapon . | . . . . Piercing Weapon . | . . . . Special Melee Weapon . | . . . . Unidentified Prototypes 2 | . . 1 1 Parts Lost 8 | . 4 . 4 Power 1 | . 1 . . Propulsion 2 | . 1 . 1 Utility 3 | . 1 . 2 Weapon 2 | . 1 . 1 Highest Loss Streak 2 | . 2 . 2 To Critical Strikes . | . . . . Average Backups 11 | 2 10 13 14 Power . | . . . . Propulsion 3 | 1 3 3 3 Utility 4 | . 3 5 5 Weapon 3 | . 3 5 4 Tool/Special . | . . . . Unused Backups 12 | . 1 . 11 Power . | . . . . Propulsion 5 | . . . 5 Utility 4 | . . . 4 Weapon 3 | . 1 . 2 Tool/Special . | . . . . Average Slot Usage (%) 90 | . 90 92 88 Engine 13 | . 13 14 11 Treads 26 | . 27 28 21 Device 3 | . 6 . . Storage 13 | . 14 14 11 Protection 4 | . . 6 12 Energy Gun 1 | . 3 . . Ballistic Gun 21 | . 19 14 30 Ballistic Cannon 3 | . 4 . 1 Launcher 2 | . . 14 . Peak Build Rating 18 | 7 10 18 16 Average Rating 10 | 5 9 10 14 On Entrance 6 | . 7 9 11 Naked Turns . | . . . . Heaviest Build 38 | 13 30 30 38 Greatest Support 46 | 40 46 46 46 Greatest Overweight (x) 1 | 1 . . 1 Average Overweight (x) . | . . . . Largest Inventory Capacity 15 | 8 15 15 15 Average Capacity 14 | 7 14 15 15 Most Carried 15 | 5 14 14 15 Average Carried 11 | 2 10 13 14 Final Capacity 15 | 8 15 15 15 Final Carried 14 | 5 13 14 14 Class Distribution -------------------- 78% | Mutant 20% | Tank Dominant Class ---------------- Mutant | -10/Materials Mutant | -10/Mines Tank | -9/Materials Resources | -11 -10 -10 -9 ----------- Run | Yrd Mat Min Mat Matter Collected 1164 | 277 431 127 329 Remotely . | . . . . Salvage Created 1676 | 106 984 13 573 Parts 134 | 9 67 5 53 Haulers Intercepted 2 | . . . 2 Recyclers Shooed 4 | . 3 . 1 Parts Field Recycled . | . . . . Retrieved Matter . | . . . . Parts Self-Destructed . | . . . . Prevented . | . . . . Kills | -11 -10 -10 -9 ------- Run | Yrd Mat Min Mat Combat Hostiles Destroyed 47 | . 23 6 18 Guns 37 | . 19 1 17 Cannons 5 | . 4 . 1 AOE 5 | . . 5 . Classes Destroyed 10 | 2 6 . 2 Worker 1 | . 1 . . Builder 2 | . 2 . . Tunneler 2 | 2 . . . Hauler 2 | . . . 2 Recycler 2 | 1 1 . . Mechanic 1 | . 1 . . Watcher 4 | . 2 . 2 Swarmer 23 | . 6 6 11 Grunt 21 | . 17 . 4 Sentry 3 | . . . 3 Best Kill Streak 9 | 3 9 3 8 Combat Bots Only 8 | . 3 3 8 Max Kills in Single Turn 3 | 1 1 2 3 Gunslinging 2 | . . . 2 Exploded 2 | . . 2 . Melee . | . . . . Uniques/NPCs Destroyed . | . . . . Combat | -11 -10 -10 -9 -------- Run | Yrd Mat Min Mat Hostile Shots Fired 203 | . 119 10 74 Missed 60 | . 40 2 18 Hits 143 | . 79 8 56 Projectile 143 | . 79 8 56 Critical Strikes 2 | . . . 2 Damage Taken 1716 | . 858 143 715 Core 263 | . 175 6 82 Absorbed by Shields . | . . . . Redirected to Shielding 38 | . . . 38 Core Remaining (%) 63 | 100 . 27 . Volleys Fired 164 | 5 104 7 48 Largest 3 | 2 2 2 3 Hottest 73 | 40 60 50 73 Shots Fired 350 | 10 192 10 138 Gun 312 | 10 170 4 128 Cannon 32 | . 22 . 10 Launcher 6 | . . 6 . Special . | . . . . Kinetic 311 | 10 159 4 138 Thermal 33 | . 33 . . Explosive 6 | . . 6 . Electromagnetic . | . . . . Robot Hit Streak 22 | 3 12 2 22 Robot Miss Streak 6 | 2 4 6 5 Penetration Max . | . . . . Secondary Targets 6 | . 3 . 3 Max Gunslinging Chain 2 | . 1 . 2 Shots Hit Robots 222 | 5 122 2 93 Core Hits 102 | 4 52 6 40 Critical Kills 1 | . 1 . . Critical Parts Destroyed 1 | . 1 . . Critical Strikes 3 | . 2 . 1 Destroy 2 | . 2 . . Blast 1 | . . . 1 Melee Attacks . | . . . . Impact . | . . . . Slashing . | . . . . Piercing . | . . . . Sneak Attacks . | . . . . Combat Hostiles . | . . . . Follow-up Attacks . | . . . . Damage Inflicted 2999 | 68 1534 363 1034 Guns 2293 | 68 1299 18 908 Cannons 340 | . 234 . 106 Explosions 345 | . . 345 . Melee . | . . . . Ramming 21 | . 1 . 20 Kinetic 2430 | 68 1330 18 1014 Thermal 301 | . 203 98 . Explosive 247 | . . 247 . Electromagnetic . | . . . . Impact . | . . . . Slashing . | . . . . Piercing . | . . . . Highest Corruption . | . . . . Average Corruption . | . . . . Corruption Purged . | . . . . Corruption Blocked . | . . . . Overload Shots . | . . . . Overflow Damage 42 | . . 42 . Projectiles . | . . . . Explosions 42 | . . 42 . Melee . | . . . . Knockbacks 4 | . 4 . . Impact . | . . . . Kinetic 4 | . 4 . . Secondary . | . . . . Self-Inflicted Damage 86 | . . 86 . Shots 3 | . . 3 . Rammed 4 | . 1 . 3 Targets Rammed 4 | . 1 . 3 Kicked . | . . . . Crushed . | . . . . Highest Temperature 255 | . 40 22 255 Average Temperature 34 | . 13 10 52 Received Heat Transfer 687 | . 420 . 267 Effects 1 | . . . 1 Energy Bleed 1 | . . . 1 Siege Activations . | . . . . Martial Activations . | . . . . Shielding Activations . | . . . . Robots Disrupted . | . . . . Combat Hostiles . | . . . . Robots Corrupted . | . . . . Combat Hostiles . | . . . . Parts Fried . | . . . . Impact Corruptions . | . . . . Robots Melted . | . . . . Combat Hostiles . | . . . . Parts Melted . | . . . . Heat Transferred 600 | . 450 150 . Parts Sabotaged . | . . . . Parts Stolen . | . . . . Parts Stripped . | . . . . Power Chain Reactions . | . . . . Alert | -11 -10 -10 -9 ------- Run | Yrd Mat Min Mat Maximum Alert Level 1 | . 1 1 1 Low Security (%) 76 | 100 76 61 87 Level 1 23 | . 23 38 12 Level 2 . | . . . . Level 3 . | . . . . Level 4 . | . . . . Level 5 . | . . . . High Security . | . . . . Max Security . | . . . . Peak Influence 294 | 10 248 294 266 Initial 70 | . . 70 23 Average 124 | 1 124 173 100 Influence Increases 1495 | 15 686 244 550 Destroy 0b10 Robot/C 940 | . 460 120 360 Destroy 0b10 Robot/NC 70 | 15 35 . 20 Destroy Leader 192 | . 94 20 78 Successful Hack 33 | . 20 . 13 Select Force Hacks 120 | . 60 . 60 Disable Machine 75 | . 15 60 . Destroy Structure 50 | . 2 44 4 Partial Spotted 15 | . . . 15 Influence Decreases 1229 | 15 503 367 344 Entered New Map 150 | . . 113 37 Time Decay 999 | 15 463 254 267 Lost Part 80 | . 40 . 40 Squads Dispatched 9 | . 6 . 3 Investigation 8 | . 5 . 3 Extermination . | . . . . Reinforcement 1 | . 1 . . Assault . | . . . . Garrison . | . . . . Intercept . | . . . . Searches Triggered . | . . . . Construction Impeded . | . . . . Haulers Reinforced . | . . . . Active Scanning Responses . | . . . . Cargo Convoy Interrupts . | . . . . Stealth | -11 -10 -10 -9 --------- Run | Yrd Mat Min Mat Distress Signals 7 | . 4 . 3 Communications Jammed . | . . . . Distress Signals . | . . . . Times Spotted 62 | . 34 4 24 Peak Tracking Total 6 | . 3 3 6 Tactical Retreats . | . . . . Traps | -11 -10 -10 -9 ------- Run | Yrd Mat Min Mat Traps Triggered 6 | . 3 . 3 Indirectly . | . . . . Trap Hack Attempts . | . . . . Triggered . | . . . . Disarmed . | . . . . Reprogrammed . | . . . . Reused . | . . . . Traps Extracted . | . . . . Installed . | . . . . Triggered . | . . . . Machines | -11 -10 -10 -9 ---------- Run | Yrd Mat Min Mat Machines Disabled 5 | . 1 4 . Max in Single Turn 3 | . 1 3 . Machines Repaired . | . . . . Machines Dismantled . | . . . . Machines Sabotaged . | . . . . Overloaded Fab Kills . | . . . . Hacking | -11 -10 -10 -9 --------- Run | Yrd Mat Min Mat Machines Accessed 12 | . 8 . 4 Terminals 8 | . 6 . 2 Fabricators . | . . . . Repair Stations . | . . . . Recycling Units 4 | . 2 . 2 Scanalyzers . | . . . . Garrison Access . | . . . . Total Hacks 35 | . 24 . 11 Successful 23 | . 15 . 8 Failed 12 | . 9 . 3 Catastrophic 1 | . 1 . . Database Lockouts . | . . . . Manual 25 | . 20 . 5 Terminals 25 | . 19 . 6 Fabricators . | . . . . Repair Stations . | . . . . Recycling Units 10 | . 5 . 5 Scanalyzers . | . . . . Garrison Access . | . . . . Terminal Hacks 4 | . 3 . 1 Robot Analysis 1 | . 1 . . Hauler Manifests 2 | . 1 . 1 Zone Layout 1 | . 1 . . Fabricator Hacks . | . . . . Repair Station Hacks . | . . . . Recycling Unit Hacks 5 | . 2 . 3 Report Inventory 4 | . 2 . 2 Retrieve Components 1 | . . . 1 Scanalyzer . | . . . . Garrison Access Hacks . | . . . . Unauthorized Hacks 13 | . 9 . 4 Terminals 9 | . 7 . 2 Botnet 2 | . 2 . . Skim 7 | . 5 . 2 Fabricators . | . . . . Repair Stations . | . . . . Recycling Units 4 | . 2 . 2 Tunnel 4 | . 2 . 2 Scanalyzers . | . . . . Garrison Access . | . . . . Data Cores Recovered . | . . . . Used . | . . . . Hacking Detections 8 | . 6 . 2 Full Trace Events 1 | . 1 . . Feedback Events . | . . . . Feedback Blocked . | . . . . Robot Schematics Acquired . | . . . . Robots Built . | . . . . Authchips . | . . . . Time . | . . . . Total Robot Build Rating . | . . . . Part Schematics Acquired . | . . . . Parts Built . | . . . . Authchips . | . . . . Time . | . . . . Total Part Build Rating . | . . . . Parts Repaired . | . . . . Time . | . . . . Parts Recycled . | . . . . Recycled Matter . | . . . . Retrieved Matter . | . . . . Retrieved Components 6 | . . . 6 Parts Scanalyzed . | . . . . Part Schematics Acquired . | . . . . Parts Damaged . | . . . . Bothacking | -11 -10 -10 -9 ------------ Run | Yrd Mat Min Mat Used RIF Installer . | . . . . Robots Hacked . | . . . . Non-combat . | . . . . Combat . | . . . . Robot Hacks Applied . | . . . . Relay Couplers Released . | . . . . Fabnet Peak Effective % . | . . . . Robots Rewired . | . . . . Allies Hacked . | . . . . Hacks Repelled . | . . . . Allies | -11 -10 -10 -9 -------- Run | Yrd Mat Min Mat Total Allies . | . . . . Largest Group . | . . . . Highest-Rated Group . | . . . . Highest-Rated Ally . | . . . . Total Orders . | . . . . Ally Attacks . | . . . . Total Damage . | . . . . Kills . | . . . . Allies Corrupted . | . . . . Allies Melted . | . . . . Intel | -11 -10 -10 -9 ------- Run | Yrd Mat Min Mat Active Infowar (turns) 708 | 16 679 13 . Sensors 13 | . . 13 . Seismic 695 | 16 679 . . Robot Analysis Total 1 | . 1 . . Derelict Logs Recovered 1 | . . 1 . Drone Launches . | . . . . Drone Recoveries . | . . . . Exploration | -11 -10 -10 -9 ------------- Run | Yrd Mat Min Mat Turns Passed 2836 | 97 1528 556 655 Spaces Moved 1417 | 46 743 335 293 Core 6 | 6 . . . Treads 1411 | 40 743 335 293 Legs . | . . . . Wheels . | . . . . Hover . | . . . . Flight . | . . . . Fastest Speed 50 | 50 160 160 160 Average Speed 159 | 146 160 160 161 Slowest Speed 240 | 160 160 160 240 Overloaded Moves . | . . . . Propulsion Burnouts . | . . . . Robots Hopped . | . . . . Potential Cave-ins . | . . . . Cave-ins Triggered . | . . . . Exploration Rate (%) 57 | 4 97 93 36 Regions Visited 3 Branch Regions 1 Pre-discovered Areas 4 | . 2 . 2 Known Exits Taken . | . . . . Unknown Exits Taken 3 | 1 1 1 . Scrap Searched 2 | . . 2 . Spaces Dug . | . . . . Terrain Destroyed 46 | . . 46 . Melee . | . . . . Projectile . | . . . . AOE 46 | . . 46 . Terrain Rammed . | . . . . Walls Destroyed . | . . . . Machines Disabled . | . . . . Actions | -11 -10 -10 -9 --------- Run | Yrd Mat Min Mat Total 1688 | 62 896 345 385 Wait 47 | . 26 . 21 Move 1414 | 45 742 334 293 Hop . | . . . . Pick Up 22 | 5 11 . 6 Fast Attach 13 | 7 2 2 2 Attach 7 | . 3 . 4 Detach 1 | . . 1 . Swap 9 | . 4 1 4 Drop 7 | . 3 . 4 Fire 164 | 5 104 7 48 Melee . | . . . . Ram . | . . . . Kick . | . . . . Crush 4 | . 1 . 3 Escape Stasis . | . . . . Rewire . | . . . . Trap . | . . . . Miscellaneous . | . . . . Route ------- -11/Scrapyard -10/Materials (discovered 4 exits: *Mat x3 / [*Min]) -10/Mines (discovered 2 exits: *Mat x2) -9/Materials (discovered 3 exits: *Mat x2 / [*Min]) History --------- Turn | Location | Event 9 | -11/Scrapyard | Discovered new exit (range 15) 98 | -11/Scrapyard | Entered Materials 293 | -10/Materials | Discovered new exit (range 6) 300 | -10/Materials | Build established: Mutant 480 | -10/Materials | Discovered new exit (range 5) 515 | -10/Materials | Discovered new exit (range 16) 924 | -10/Materials | Core integrity fell below 50% 982 | -10/Materials | Discovered new exit (range 3) 1626 | -10/Materials | Entered Mines 1686 | -10/Mines | Discovered new exit (range 10) 1873 | -10/Mines | Found a damaged Exp. Sensor Array with a note attached 1876 | -10/Mines | Found Prototype Device 1876 | -10/Mines | Identified Exp. Sensor Array 1974 | -10/Mines | Learned location of 1 exit from Materials 2078 | -10/Mines | Discovered new exit (range 8) 2182 | -10/Mines | Entered Materials 2182 | -9/Materials | Evolved 2 slots: Utility x1, Weapon x1 2183 | -9/Materials | Identified exit to Materials 2498 | -9/Materials | Discovered new exit (range 15) 2641 | -9/Materials | Destroyed 8 combat bots 2740 | -9/Materials | Discovered exit to Materials (range 10) 2837 | -9/Materials | Self-destructed Last Messages --------------- 02797_ Acquired Lgt. Armor Plating. 02805_ Slammed into U-05 Engineer. 02832_ Connecting with Recycling Unit... >>Recycling(Report) Matter reserves: 180 Inventory: Prototype Energy Gun (100%) Imp. Heat Sink (90%) Ion Engine (98%) Particle Gun (61%) Aluminum Leg (67%) Arm. Wheel (100%) Heat Sink (80%) Flight Unit (90%) Imp. Ion Engine (90%) >>Force(Tunnel) DISCOVERED[-5/Factory] 02832_ ALERT: Suspicious activity at Recycling Unit M002. Dispatching Investigation squad. 02832_ Y-45 Defender destroyed. Map ----- +----------------------------------------------------+ | ??????????#!###########???????????????? | | ??????????#=#?????????????????????????? | | ??????????#[#?????????????????????????? | | ??????????#+######????????????????????? | | ??????????#%! #????????????????????? | | ??????????#%* """#????????????????????? | | ??????????# """#????????????????????? | | ??????????# """#????????????????????? | | ??????????# #????????????????????? | | ??????????# %! #????????????????????? | | ##############+###########????????????? | | =[ ##???????????? | | % < ????????? | | !% ##???????????? | | ##############+###########????????#???? | | ???????????# [ #?????????????# ###?? | | ??????????## "" #??????###### #?? | | ??????????# """ ######## T" #?? | | ??????????## S" / " #?? | | ???????????# ##### #?? | | ???????????# #???# #### #?? | | ???????????########???# #?????+###?? | | ????????????????????######+####???????? | | ???????????????????## """ !#???????? | | ???????????????????# "Y" !! #???????? | | ???????????????????##=%r @!! #???????? | | ????????????????????# * #???????? | | ????????????????????###########???????? | | | | | | | | | | | | | | | | | | | | | | | | | | | | | | | | | | | | | | | | | | | | | +----------------------------------------------------+ Best States ------------- Heat Dissipation 28 Energy Generation 10 Energy Capacity 250 Matter Stores 300 Matter Capacity 300 Sight Range 16 Robot Scan Range 20 Terrain Scan Density 10 Armor Coverage 300 Propulsion Shielding 33 Evasion (%) 40 Targeting Accuracy 6 Recoil Reduction 2 Item Schematics ----------------- None Robot Schematics ------------------ None Fabricated ------------ Nothing Repaired ---------- Nothing Alien Tech Used ----------------- None Achievements -------------- None Challenges ------------ None Game ------ Seed MappingCargoSteel Manual? 0 Play Time 00:14:10 Cumulative 206.6 hours Start 2025.07.28 @ 16:32:14 End 2025.07.28 @ 16:45:58 Sessions 1 Manual Loads 0 Difficulty Rogue Special Mode None Game No. 218 Rogue 218 Adventurer 0 Explorer 0 Win Type - Total 4 Types 1/0/1/1/0/0/0/0/0/1 Lore% 71 Gallery% 68 Achievement% 62 Wizard Run 0 Options --------- Layout 1 ASCII 0 Keyboard 1 Movement Numpad Keybinds 0 Fullscreen 1 Font 32/SmallcapsGlow Map View 77x35 Zoom Use 0% Tactical HUD 1 Map Filters NONE Filters NONE Steam 1 RUN: e6d062ef-f739-42ea-9729-bdefa22c3c3a